bitfinex-derivatives/quotes_ETHF0:USTF0_20241013
["timestamp","ask_amount","ask_price","bid_price","bid_amount"]
[1728811569429,3.17966734,2464.4,2464.3,3.2078]
[1728811569933,3.17966734,2464.4,2464.3,4.26767973]
[1728811570130,3.17966734,2464.4,2464.3,3.2078]
[1728811570430,3.70863601,2464.4,2464.3,3.2078]
[1728811571529,3.70863601,2464.4,2464.2,1.05987973]
[1728811571730,2.37165626,2464.3,2464.2,1.05987973]
[1728811576841,1.06165626,2464.3,2464.2,1.05987973]
[1728811577434,2.37165626,2464.4,2464.2,1.46574973]
[1728811577945,1.06165626,2464.3,2464.2,1.46574973]
[1728811578536,1.06165626,2464.4,2464.2,3.42153913]
[1728811578743,1.06165626,2464.4,2464.3,1.05987973]
[1728811579740,1.47135626,2464.5,2464.3,8.15942299]
[1728811579938,1.06165626,2464.5,2464.4,5.8157677]
[1728811580142,1.06165626,2464.5,2464.4,6.35535735]
[1728811580837,2.78495626,2464.6,2464.4,7.04703232]
[1728811581037,2.78495626,2464.6,2464.4,5.09127492]
[1728811581336,2.78495626,2464.6,2464.4,5.49710492]
[1728811582041,1.06165626,2464.5,2464.4,5.49710492]
[1728811582233,1.06165626,2464.5,2464.4,7.45296762]
[1728811583045,2.37165626,2464.6,2464.4,6.38919381]
[1728811583245,2.37165626,2464.6,2464.5,1.06390818]
[1728811584347,2.37165626,2464.6,2464.5,2.77972818]
[1728811584648,2.37165626,2464.6,2464.5,2.37390818]
[1728811587442,2.37165626,2464.6,2464.5,3.6957976]
[1728811587639,2.37165626,2464.6,2464.5,3.47186146]
[1728811587843,2.37165626,2464.6,2464.5,3.69578955]
[1728811588048,2.37165626,2464.6,2464.5,3.47186146]
[1728811588244,2.37165626,2464.6,2464.5,3.10538809]
[1728811588448,1.31,2464.6,2464.5,4.71092969]
[1728811588944,1.31,2464.6,2464.5,4.83781675]
[1728811588945,2.37229593,2464.6,2464.5,4.83781675]
[1728811589654,2.37229593,2464.6,2464.5,5.75119071]
[1728811589845,2.37229593,2464.6,2464.5,4.68728253]
[1728811590045,2.37229593,2464.6,2464.5,5.75148392]
[1728811590350,2.37229593,2464.6,2464.5,5.7514282]
[1728811590545,2.37229593,2464.6,2464.5,5.75141799]
[1728811591145,2.37229593,2464.6,2464.5,5.62453093]
[1728811591353,2.37224223,2464.6,2464.5,4.01903854]
[1728811591555,2.37224223,2464.6,2464.5,2.07930897]
[1728811592152,2.89690601,2464.6,2464.5,2.07930897]
[1728811592353,2.37219711,2464.6,2464.5,2.07930897]
[1728811593452,2.89690601,2464.6,2464.5,2.07930897]
[1728811597655,2.89690601,2464.6,2464.5,1.47002139]
[1728811598356,2.89690601,2464.6,2464.5,1.69396405]
[1728811599747,2.89690601,2464.6,2464.5,1.28814405]
[1728811600247,2.89690601,2464.6,2464.5,1.06420139]
[1728811601651,3.09992691,2464.6,2464.5,1.06420139]
[1728811601851,2.89690601,2464.6,2464.5,1.06420139]
[1728811602558,3.09992736,2464.6,2464.5,1.06420139]
[1728811605958,3.09992736,2464.6,2464.5,1.28817822]
[1728811606688,2.89690601,2464.6,2464.5,1.92261568]
[1728811606855,2.89690601,2464.6,2464.5,2.79678642]
[1728811607165,2.89690601,2464.6,2464.5,3.02075469]
[1728811607661,1.31,2464.6,2464.5,3.5463729]
[1728811608065,2.89690601,2464.6,2464.5,1.9565533]
[1728811608565,2.89690601,2464.6,2464.5,3.02096901]
[1728811610572,2.89690601,2464.6,2464.5,3.0209677]
[1728811613575,2.89690601,2464.6,2464.5,1.28838498]
[1728811614170,2.89690601,2464.6,2464.5,1.06441571]
[1728811614366,2.89690601,2464.6,2464.5,1.28837813]
[1728811616169,2.89690601,2464.6,2464.5,1.79592871]
[1728811616670,1.58690601,2464.6,2464.5,3.02095291]
[1728811617885,1.58690601,2464.6,2464.5,2.98847469]
[1728811618069,1.58690601,2464.6,2464.5,3.86475862]
[1728811618279,1.58690601,2464.6,2464.5,4.14830225]
[1728811618468,1.58690601,2464.6,2464.5,5.00672306]
[1728811618668,1.58690601,2464.6,2464.5,4.87983833]
[1728811618873,1.58690601,2464.6,2464.5,4.37229939]
[1728811619173,3.29190601,2464.7,2464.5,5.74595972]
[1728811619382,3.29190601,2464.7,2464.6,1.92295205]
[1728811619672,1.90800577,2464.7,2464.6,3.02132381]
[1728811619874,1.06279284,2464.7,2464.6,5.26239443]
[1728811620173,1.59419247,2464.8,2464.7,0.40578]
[1728811620174,1.06279284,2464.8,2464.7,0.40578]
[1728811620379,1.06279284,2464.8,2464.7,8.25371083]
[1728811620578,1.06279284,2464.8,2464.7,13.15431083]
[1728811620772,1.06279284,2464.8,2464.7,15.27407029]
[1728811621078,1.06279284,2464.8,2464.7,11.25241327]
[1728811621266,1.06279284,2464.8,2464.7,12.64675316]
[1728811621672,1.06279284,2464.8,2464.7,13.15420287]
[1728811622779,2.37279284,2465.0,2464.8,0.40576]
[1728811623077,2.37279284,2465.0,2464.9,4.35608379]
[1728811623765,2.37279284,2465.0,2464.9,3.62463191]
[1728811623968,2.37279284,2465.0,2464.9,4.35594144]
[1728811624168,2.37279284,2465.0,2464.9,3.72162507]
[1728811624374,2.37279284,2465.0,2464.9,4.22907502]
[1728811624769,2.37279284,2465.0,2464.9,4.35593744]
[1728811624969,2.37279284,2465.0,2464.9,3.49776549]
[1728811625265,2.37279284,2465.0,2464.9,1.90117176]
[1728811625469,2.37279284,2465.0,2464.9,3.49776549]
[1728811625668,2.37279284,2465.0,2464.9,1.90117176]
[1728811625979,2.37279284,2465.0,2464.9,2.96504073]
[1728811626174,2.37279284,2465.0,2464.9,1.86648663]
[1728811627278,1.31,2465.0,2464.9,0.8028]
[1728811627774,2.3716372,2465.0,2464.9,0.8028]
[1728811631790,1.0616372,2465.0,2464.9,5.3206]
[1728811631980,1.4519372,2465.1,2464.9,6.79003663]
[1728811632173,1.4519372,2465.1,2465.0,1.31]
[1728811632373,0.3903,2465.1,2465.0,1.31]
[1728811632569,0.3903,2465.1,2465.0,2.37368663]
[1728811632980,1.4755372,2465.2,2465.0,2.77942663]
[1728811633175,1.0616372,2465.2,2465.1,1.31]
[1728811633375,2.7536372,2465.3,2465.1,1.31]
[1728811634073,1.31,2465.2,2465.0,2.37368663]
[1728811636174,1.7093,2465.1,2465.0,1.31]
[1728811637079,2.7709372,2465.1,2464.9,5.3206]
[1728811637879,2.7709372,2465.1,2464.9,5.72635]
[1728811639385,2.7709372,2465.1,2464.9,2.51855]
[1728811639583,2.7709372,2465.1,2465.0,3.2078]
[1728811641079,2.7709372,2465.1,2464.9,2.51855]
[1728811641286,2.7709372,2465.1,2465.0,3.2078]
[1728811643196,1.7093,2465.1,2465.0,3.2078]
[1728811644281,0.3993,2465.1,2465.0,3.2078]
[1728811646591,0.3993,2465.1,2464.9,3.58223663]
[1728811647385,0.3993,2465.1,2465.0,3.2078]
[1728811647889,0.3993,2465.1,2465.0,4.5178]
[1728811648085,0.3993,2465.1,2465.0,4.92354]
[1728811648695,0.3993,2465.1,2465.0,4.5178]
[1728811650091,1.4603372,2465.4,2465.1,0.40571]
[1728811650287,1.4603372,2465.4,2465.2,2.1056]
[1728811650477,1.4603372,2465.4,2465.3,1.31]
[1728811651084,0.3987,2465.4,2465.3,1.31]
[1728811651485,1.45945756,2465.4,2465.3,1.31]
[1728811653993,2.76945756,2465.4,2465.2,5.6977]
[1728811654591,2.76945756,2465.4,2465.2,6.1034]
[1728811655686,2.76945756,2465.4,2465.2,2.8956]
[1728811656196,2.76945756,2465.4,2465.2,6.1034]
[1728811658287,0.3987,2465.4,2465.2,6.1034]
[1728811659395,0.3987,2465.4,2465.2,2.8956]
[1728811659693,0.3987,2465.4,2465.2,6.1034]
[1728811660687,1.45945756,2465.4,2465.2,6.1034]
[1728811661690,1.45945756,2465.4,2465.2,7.16708663]
[1728811662596,1.45945756,2465.4,2465.2,3.95928663]
[1728811662783,1.45945756,2465.4,2465.2,7.16708663]
[1728811663188,1.45945756,2465.4,2465.2,3.95928663]
[1728811663390,1.45945756,2465.4,2465.2,7.16708663]
[1728811663783,1.45945756,2465.4,2465.2,3.95928663]
[1728811663998,1.45945756,2465.4,2465.2,7.16708663]
[1728811665397,1.45945756,2465.4,2465.2,3.95928663]
[1728811665586,1.99289247,2465.4,2465.3,1.06368663]
[1728811665987,1.99289247,2465.4,2465.3,2.37368663]
[1728811666193,1.06215693,2465.4,2465.3,2.77937663]
[1728811666493,1.06217684,2465.4,2465.3,2.77937663]
[1728811667196,1.06217684,2465.4,2465.3,3.87670722]
[1728811667698,1.06217684,2465.4,2465.3,4.734734]
[1728811668497,1.45717684,2465.5,2465.3,4.8619511]
[1728811668691,1.45717684,2465.5,2465.4,1.06353203]
[1728811668893,1.45717684,2465.5,2465.4,2.77920203]
[1728811669100,1.06217684,2465.5,2465.4,3.00297917]
[1728811669293,1.06217684,2465.5,2465.4,3.63714138]
[1728811669495,1.06217684,2465.6,2465.5,0.40565]
[1728811669698,1.06217684,2465.6,2465.5,6.37128631]
[1728811670002,1.06217684,2465.6,2465.5,7.15208631]
[1728811673498,1.06217684,2465.7,2465.5,7.15208631]
[1728811676500,1.06217684,2465.7,2465.6,1.31]
[1728811685208,1.08247617,2465.7,2465.6,1.31]
[1728811686109,1.08247617,2465.7,2465.6,2.77907631]
[1728811686110,0.02029933,2465.7,2465.6,2.77907631]
[1728811686507,0.02029933,2465.7,2465.6,9.74167004]
[1728811686806,1.06217684,2466.0,2465.9,0.40559]
[1728811687107,1.06217684,2466.2,2466.0,0.40557]
[1728811687316,2.79379247,2466.3,2466.1,1.31]
[1728811687511,1.06186965,2466.2,2466.0,1.22627]
[1728811687703,1.06186965,2466.2,2466.1,1.31]
[1728811688101,1.06186965,2466.2,2466.1,1.71555]
[1728811688310,1.46206965,2466.3,2466.2,0.40554]
[1728811688614,1.46206965,2466.3,2466.2,1.71554]
[1728811688615,1.99439247,2466.3,2466.2,1.71554]
[1728811688804,1.46152491,2466.3,2466.2,1.71554]
[1728811689213,1.46152491,2466.3,2466.2,1.31]
[1728811689604,0.4002,2466.3,2466.2,1.31]
[1728811690608,0.4002,2466.3,2466.2,4.5178]
[1728811692816,0.4002,2466.3,2466.2,4.92334]
[1728811693111,0.4165,2466.5,2466.4,0.40551]
[1728811693317,0.4165,2466.5,2466.4,1.71551]
[1728811695215,0.4165,2466.5,2466.4,2.13601]
[1728811696110,0.4155,2466.7,2466.5,0.40549]
[1728811696420,0.8122,2466.7,2466.6,1.7206]
[1728811697619,0.8122,2466.7,2466.6,1.31]
[1728811703731,0.8122,2466.7,2466.6,1.71547]
[1728811704033,0.3967,2466.7,2466.6,1.71547]
[1728811707236,0.4025,2466.8,2466.6,1.31]
[1728811707432,0.395,2466.9,2466.7,5.34516]
[1728811707641,0.395,2466.9,2466.8,1.31]
[1728811708347,0.8088,2467.0,2466.8,1.31]
[1728811708645,0.8088,2467.0,2466.9,1.31]
[1728811712836,0.4214,2467.0,2466.9,1.71542]
[1728811714844,0.4214,2467.0,2466.9,1.31]
[1728811715641,0.4214,2467.0,2466.9,1.71542]
[1728811716838,0.4214,2467.0,2466.9,1.31]
[1728811719551,0.4214,2467.0,2466.9,4.5178]
[1728811720056,0.44168924,2467.0,2466.9,4.5178]
[1728811720247,0.02028924,2467.0,2466.9,4.5178]
[1728811720450,0.02028924,2467.0,2466.9,4.92322]
[1728811724548,0.02028924,2467.0,2466.9,1.71542]
[1728811724754,0.02028924,2467.0,2466.9,4.92322]
[1728811725753,1.08161415,2467.0,2466.9,4.92322]
[1728811726545,1.48291415,2467.0,2466.9,4.92322]
[1728811729057,1.48291415,2467.0,2466.9,1.71542]
[1728811729259,1.48291415,2467.0,2466.9,4.92322]
[1728811729448,2.01578171,2467.0,2466.9,4.92322]
[1728811730555,2.21859449,2467.0,2466.9,4.92322]
[1728811731550,0.62440202,2467.0,2466.9,1.71542]
[1728811731752,0.62440202,2467.0,2466.9,4.92322]
[1728811732354,0.62440202,2467.0,2466.9,1.71542]
[1728811732561,2.74027671,2467.0,2466.9,4.92322]
[1728811733064,8.10387671,2467.0,2466.9,3.2078]
[1728811733355,0.40543,2466.9,2466.6,4.5178]
[1728811733564,1.59192943,2466.7,2466.6,4.5178]
[1728811733752,0.4022,2466.8,2466.6,4.5178]
[1728811733953,0.41128924,2466.7,2466.6,3.2078]
[1728811734152,0.41128924,2466.7,2466.6,4.5178]
[1728811735357,0.41128924,2466.7,2466.6,4.9216]
[1728811735563,0.41128924,2466.7,2466.6,5.98426199]
[1728811735955,0.41128924,2466.7,2466.6,4.67426199]
[1728811736157,0.41128924,2466.7,2466.6,5.98426199]
[1728811739763,0.41128924,2466.7,2466.6,6.38973199]
[1728811740468,0.41128924,2466.7,2466.6,7.48851515]
[1728811740661,0.41128924,2466.7,2466.6,5.74287]
[1728811740662,0.61412066,2466.7,2466.6,5.74287]
[1728811741569,0.22312066,2466.7,2466.6,5.74287]
[1728811742270,0.22312066,2466.7,2466.6,6.24995498]
[1728811742670,2.34569323,2466.7,2466.6,6.24995498]
[1728811742961,0.22312066,2466.7,2466.6,6.47362873]
[1728811743157,0.22312066,2466.7,2466.6,6.60039856]
[1728811743365,0.22312066,2466.7,2466.6,5.96655982]
[1728811743560,0.22312066,2466.7,2466.6,6.09332965]
[1728811743754,0.22312066,2466.7,2466.6,5.86963982]
[1728811743966,0.22312066,2466.7,2466.6,6.60040897]
[1728811743967,2.34569323,2466.7,2466.6,6.60040897]
[1728811744366,2.34569323,2466.7,2466.6,7.10748829]
[1728811745967,2.36598275,2466.7,2466.6,7.10748829]
[1728811747071,2.36598275,2466.7,2466.6,7.10748974]
[1728811747467,2.36598275,2466.7,2466.6,7.10754734]
[1728811748473,2.36598275,2466.7,2466.6,5.39207734]
[1728811748765,1.10346437,2466.7,2466.6,8.44837872]
[1728811749159,1.10346437,2466.7,2466.6,7.38571673]
[1728811749365,1.10346437,2466.7,2466.6,8.97973354]
[1728811749667,1.10346437,2466.7,2466.6,8.47265422]
[1728811750073,1.10346437,2466.7,2466.6,8.12213586]
[1728811750278,1.10346437,2466.7,2466.6,7.6150562]
[1728811750665,1.10346437,2466.7,2466.6,7.61512075]
[1728811751371,1.10346437,2466.7,2466.6,8.02059075]
[1728811755566,0.04057848,2466.7,2466.6,8.40379075]
[1728811755767,1.63503633,2466.7,2466.6,5.71027]
[1728811756173,1.83786732,2466.7,2466.6,5.71027]
[1728811757268,1.83786732,2466.7,2466.6,7.94010137]
[1728811758773,1.83786732,2466.7,2466.6,7.94010174]
[1728811759172,1.63503633,2466.7,2466.6,7.94010174]
[1728811759473,1.63503633,2466.7,2466.6,9.00317372]
[1728811759678,1.63503633,2466.7,2466.6,7.94010174]
[1728811759882,1.83786702,2466.7,2466.6,7.94010174]
[1728811760265,1.83786701,2466.7,2466.6,9.00317372]
[1728811762579,1.83786701,2466.7,2466.6,8.59770372]
[1728811763776,1.63503633,2466.7,2466.6,10.76281672]
[1728811763971,0.04057848,2466.7,2466.6,10.76281672]
[1728811765687,0.04057848,2466.7,2466.6,11.16828672]
[1728811766777,0.04057848,2466.7,2466.6,11.97960971]
[1728811767083,0.04057848,2466.7,2466.6,11.97961146]
[1728811767282,0.04057848,2466.7,2466.6,13.36721326]
[1728811768680,0.04057848,2466.7,2466.6,17.42161326]
[1728811769379,0.04057848,2466.7,2466.6,16.83977461]
[1728811769583,0.04057848,2466.7,2466.6,17.42207369]
[1728811770075,0.04057848,2466.7,2466.6,16.91499473]
[1728811770281,0.04057848,2466.7,2466.6,17.42206976]
[1728811770676,0.04057848,2466.7,2466.6,15.29327812]
[1728811771072,0.04057848,2466.7,2466.6,17.94271736]
[1728811771276,0.04057848,2466.7,2466.6,15.29301803]
[1728811772184,0.05895467,2466.7,2466.6,14.50828263]
[1728811772382,0.05895467,2466.7,2466.6,13.69696258]
[1728811772583,0.05895467,2466.7,2466.6,16.34666191]
[1728811773688,0.05895467,2466.7,2466.6,15.71281813]
[1728811773879,0.05895467,2466.7,2466.6,16.34663113]
[1728811775985,0.05895467,2466.7,2466.6,12.29223113]
[1728811776186,0.05895467,2466.7,2466.6,16.34663113]
[1728811776381,0.05895467,2466.7,2466.6,12.29223113]
[1728811776982,0.05895467,2466.7,2466.6,9.08443113]
[1728811777185,0.05895467,2466.7,2466.6,16.34663113]
[1728811777584,0.05895467,2466.7,2466.6,16.34663353]
[1728811778189,0.05895467,2466.7,2466.6,16.54945141]
[1728811778396,0.05895467,2466.7,2466.6,17.36072315]
[1728811778694,0.05895467,2466.7,2466.6,17.15790508]
[1728811778886,1.12219601,2466.7,2466.6,12.30923988]
[1728811779389,1.12219601,2466.7,2466.6,12.30923937]
[1728811779584,1.12219601,2466.7,2466.6,11.49796833]
[1728811780194,1.12219601,2466.7,2466.6,12.28273866]
[1728811780488,1.12219601,2466.7,2466.6,13.09401279]
[1728811780690,1.12219601,2466.7,2466.6,14.68900182]
[1728811780888,1.12219601,2466.7,2466.6,14.46519112]
[1728811781091,1.12219601,2466.7,2466.6,13.8777259]
[1728811781388,1.12219601,2466.7,2466.6,15.19604815]
[1728811781595,1.12219601,2466.7,2466.6,13.60105912]
[1728811782096,1.12219601,2466.7,2466.6,9.03960987]
[1728811782787,1.12219601,2466.7,2466.6,10.63452921]
[1728811784685,1.12219601,2466.7,2466.6,6.61544378]
[1728811784891,1.12219601,2466.7,2466.6,10.63451198]
[1728811785885,0.05895467,2466.7,2466.6,13.88845454]
[1728811786285,0.05895467,2466.7,2466.6,13.88852255]
[1728811788896,0.05895467,2466.7,2466.6,13.88859014]
[1728811793898,0.05895467,2466.7,2466.6,17.94299014]
[1728811795501,0.05895467,2466.7,2466.6,17.61340813]
[1728811795708,0.05895467,2466.7,2466.6,17.94297374]
[1728811795907,0.05895467,2466.7,2466.6,17.36102686]
[1728811796104,0.05895467,2466.7,2466.6,17.94304239]
[1728811796409,0.05895467,2466.7,2466.6,17.13183412]
[1728811796706,0.05895467,2466.7,2466.6,17.63885765]
[1728811796902,0.05895467,2466.7,2466.6,13.07743301]
[1728811797207,0.05895467,2466.7,2466.6,17.94307067]
[1728811797708,0.05895467,2466.7,2466.6,13.88867067]
[1728811797902,0.05895467,2466.7,2466.6,17.94307067]
[1728811798211,0.05895467,2466.7,2466.6,14.64428957]
[1728811798406,0.05895467,2466.7,2466.6,18.48652031]
[1728811799904,0.05895467,2466.7,2466.6,15.83682098]
[1728811800107,0.05895467,2466.7,2466.6,15.83682408]
[1728811800502,0.05895467,2466.7,2466.6,11.78242408]
[1728811800804,0.05895467,2466.7,2466.6,15.83682408]
[1728811801006,1.12219601,2466.7,2466.6,15.83682408]
[1728811801310,1.12219601,2466.7,2466.6,14.44257488]
[1728811801707,0.05895467,2466.7,2466.6,14.44279809]
[1728811801908,0.05895467,2466.7,2466.6,18.49719809]
[1728811802106,0.05895467,2466.7,2466.6,14.44279809]
[1728811802309,0.05895467,2466.7,2466.6,19.34119809]
[1728811802805,0.05895467,2466.7,2466.6,19.34128207]
[1728811804712,0.05895467,2466.7,2466.6,16.13348207]
[1728811805208,0.05895467,2466.7,2466.6,15.28688207]
[1728811808208,0.05895467,2466.7,2466.6,12.62738262]
[1728811814214,0.05895467,2466.7,2466.6,11.30909267]
[1728811814420,0.05895467,2466.7,2466.6,11.81612185]
[1728811814620,0.05895467,2466.7,2466.6,12.62736854]
[1728811815724,0.05895467,2466.7,2466.6,16.68176854]
[1728811816430,0.05895467,2466.7,2466.6,12.62736854]
[1728811816625,0.05895467,2466.7,2466.6,15.83776854]
[1728811816821,0.05895467,2466.7,2466.6,12.62736854]
[1728811817921,0.05895467,2466.7,2466.6,12.62739319]
[1728811821727,0.05895467,2466.7,2466.6,11.79082574]
[1728811821929,0.05895467,2466.7,2466.6,12.62742472]
[1728811822625,0.05895467,2466.7,2466.6,11.78342472]
[1728811822829,0.05895467,2466.7,2466.6,10.89464633]
[1728811823130,0.46015467,2466.7,2466.6,10.89464633]
[1728811823733,1.52339601,2466.7,2466.6,13.55519318]
[1728811824622,0.46015467,2466.7,2466.6,13.55519318]
[1728811824823,1.52339601,2466.7,2466.6,13.55519318]
[1728811825330,1.52339601,2466.7,2466.6,13.55685267]
[1728811825724,1.52339601,2466.7,2466.6,10.34905267]
[1728811825927,1.52339601,2466.7,2466.6,13.55685267]
[1728811826135,0.46015467,2466.7,2466.6,13.5568749]
[1728811826537,0.46015467,2466.7,2466.6,12.7128749]
[1728811826742,0.46015467,2466.7,2466.6,13.5568749]
[1728811827830,0.46015467,2466.7,2466.6,13.9623449]
[1728811828828,0.46015467,2466.7,2466.6,11.73187906]
[1728811829033,0.46015467,2466.7,2466.6,13.96226809]
[1728811829234,0.46015467,2466.7,2466.6,13.96226951]
[1728811829833,0.46015467,2466.7,2466.6,12.31384768]
[1728811830035,0.46015467,2466.7,2466.6,13.35351133]
[1728811830233,0.46015467,2466.7,2466.6,13.5563371]
[1728811830439,0.46015467,2466.7,2466.6,11.39396956]
[1728811830737,0.46015467,2466.7,2466.6,11.03553915]
[1728811830943,0.46015467,2466.7,2466.6,11.39398192]
[1728811831240,0.46015467,2466.7,2466.6,12.71236273]
[1728811831638,1.52339601,2466.7,2466.6,12.71236273]
[1728811832240,0.46015467,2466.7,2466.6,12.71236273]
[1728811834137,1.52339601,2466.7,2466.6,10.05181588]
[1728811834640,0.46015467,2466.7,2466.6,10.05181588]
[1728811834838,0.46015467,2466.7,2466.6,10.05157311]
[1728811835238,0.46015467,2466.7,2466.6,12.71211996]
[1728811835434,0.46015467,2466.7,2466.6,10.05157311]
[1728811835629,0.46015467,2466.7,2466.6,12.71211996]
[1728811837437,0.46015467,2466.7,2466.6,9.50431996]
[1728811837642,0.46015467,2466.7,2466.6,9.90978996]
[1728811837837,0.46015467,2466.7,2466.6,10.45704311]
[1728811838042,0.46015467,2466.7,2466.6,13.11758996]
[1728811838635,0.46015467,2466.7,2466.6,10.45704311]
[1728811838941,0.05895467,2466.7,2466.6,13.11758996]
[1728811839940,0.05895467,2466.7,2466.6,10.45704311]
[1728811840750,0.05895467,2466.7,2466.6,9.64547709]
[1728811840940,0.05895467,2466.7,2466.6,10.4567317]
[1728811844244,0.05895467,2466.7,2466.6,10.32921582]
[1728811844438,0.05895467,2466.7,2466.6,10.45598945]
[1728811847945,0.05895467,2466.7,2466.6,5.24199967]
[1728811848146,0.05895467,2466.7,2466.6,9.64473753]
[1728811848336,0.05895467,2466.7,2466.6,11.26726924]
[1728811849044,0.05895467,2466.7,2466.6,11.26721467]
[1728811849236,0.05895467,2466.7,2466.6,12.11121467]
[1728811849442,0.05895467,2466.7,2466.6,12.11116312]
[1728811850850,0.05895467,2466.7,2466.6,11.29989673]
[1728811853950,0.05895467,2466.7,2466.6,11.29998917]
[1728811855348,0.05895467,2466.7,2466.6,9.98168023]
[1728811855552,0.05895467,2466.7,2466.6,11.29998543]
[1728811856650,0.05895467,2466.7,2466.6,12.64948018]
[1728811856947,0.05895467,2466.7,2466.6,13.95948018]
[1728811857361,0.05895467,2466.7,2466.6,11.29998543]
[1728811857854,1.12219601,2466.7,2466.6,11.29998543]
[1728811858448,1.12219601,2466.7,2466.6,9.14598543]
[1728811858647,1.12219601,2466.7,2466.6,7.15339198]
[1728811858845,1.12219601,2466.7,2466.6,10.4562463]
[1728811859147,1.12219601,2466.7,2466.6,12.58414305]
[1728811859353,1.12219601,2466.7,2466.6,10.4562463]
[1728811860251,1.12219601,2466.7,2466.6,7.2484463]
[1728811860453,1.12219601,2466.7,2466.6,10.4562463]
[1728811861647,1.12219601,2466.7,2466.6,9.1379499]
[1728811861957,1.12219601,2466.7,2466.6,7.15347182]
[1728811862154,1.12219601,2466.7,2466.6,10.45617978]
[1728811862657,0.05895467,2466.7,2466.6,10.45617978]
[1728811862848,1.12219601,2466.7,2466.6,10.45617978]
[1728811863258,0.05895467,2466.7,2466.6,7.24837978]
[1728811863454,0.05895467,2466.7,2466.6,10.45617978]
[1728811863755,0.05895467,2466.7,2466.6,7.24837978]
[1728811864157,0.05895467,2466.7,2466.6,10.45617978]
[1728811864851,1.12219601,2466.7,2466.6,10.45617978]
[1728811865252,0.05895467,2466.7,2466.6,9.64487032]
[1728811865457,0.05895467,2466.7,2466.6,7.24837717]
[1728811866055,0.05895467,2466.7,2466.6,10.45617717]
[1728811866456,1.12219601,2466.7,2466.6,10.45617717]
[1728811866858,1.12219601,2466.7,2466.6,10.45561292]
[1728811868450,1.12219601,2466.7,2466.6,7.24781292]
[1728811868651,1.12219601,2466.7,2466.6,10.45561292]
[1728811868854,1.12219601,2466.7,2466.6,8.22541371]
[1728811869155,0.05895467,2466.7,2466.6,9.64423464]
[1728811869355,1.12219601,2466.7,2466.6,10.45553953]
[1728811869550,1.12219601,2466.7,2466.6,12.58298647]
[1728811870456,1.12219601,2466.7,2466.6,10.86751489]
[1728811870663,1.12219601,2466.7,2466.6,12.17751489]
[1728811870959,1.12219601,2466.7,2466.6,12.58298489]
[1728811871360,1.12219601,2466.7,2466.6,12.5829899]
[1728811871551,1.12219601,2466.7,2466.6,12.1775199]
[1728811871757,1.12219601,2466.7,2466.6,12.5829899]
[1728811871959,1.12219601,2466.7,2466.6,12.1775199]
[1728811872553,1.12219601,2466.7,2466.6,11.265767]
[1728811872755,1.12219601,2466.7,2466.6,11.67042579]
[1728811872956,1.12219601,2466.7,2466.6,12.17749706]
[1728811873259,6.48659601,2466.7,2466.6,8.66606458]
[1728811873460,7.22065243,2466.7,2466.6,6.76194831]
[1728811874362,7.22065243,2466.7,2466.6,6.12810923]
[1728811874661,7.22065243,2466.7,2466.6,6.63522251]
[1728811874854,7.22065243,2466.7,2466.6,6.12810923]
[1728811875057,7.22065243,2466.7,2466.6,4.49546896]
[1728811875058,7.74876715,2466.7,2466.6,4.49546896]
[1728811875262,5.62619458,2466.7,2466.6,4.27159341]
[1728811875660,5.62619458,2466.7,2466.6,1.06379341]
[1728811876271,5.62620063,2466.7,2466.6,1.06379341]
[1728811876661,6.03166063,2466.7,2466.6,1.06379341]
[1728811877563,6.03166063,2466.7,2466.5,5.58159341]
[1728811877866,2.38551651,2466.6,2466.5,5.58159341]
[1728811878159,2.44447118,2466.6,2466.5,2.59758243]
[1728811878359,6.49887118,2466.6,2466.5,5.58159341]
[1728811878966,2.84994118,2466.6,2466.5,5.58159341]
[1728811879155,2.84994118,2466.6,2466.5,4.27159341]
[1728811879156,14.41719373,2466.6,2466.5,4.27159341]
[1728811879357,0.4055,2466.5,2466.3,1.06379341]
[1728811879559,2.77856992,2466.4,2466.3,1.06379341]
[1728811879859,7.36449988,2466.4,2466.3,1.06379341]
[1728811880065,13.36449988,2466.4,2466.3,1.06379341]
[1728811880263,12.8916426,2466.4,2466.2,4.27159341]
[1728811880459,7.21897793,2466.3,2466.2,4.27159341]
[1728811880667,6.1562,2466.3,2466.2,5.37148393]
[1728811881366,6.21515467,2466.3,2466.2,4.27159341]
[1728811882166,7.2779326,2466.3,2466.2,3.2078]
[1728811882370,7.2779326,2466.3,2466.2,4.5178]
[1728811883562,6.21515467,2466.3,2466.2,4.5178]
[1728811884070,6.21515467,2466.3,2466.2,1.31]
[1728811884269,6.21515467,2466.3,2466.2,4.5178]
[1728811885464,6.21515467,2466.3,2466.2,1.31]
[1728811885678,6.21515467,2466.3,2466.2,4.5178]
[1728811888370,6.62067467,2466.3,2466.2,4.5178]
[1728811888768,4.90515467,2466.3,2466.2,4.5178]
[1728811889872,5.31067467,2466.3,2466.2,4.5178]
[1728811890062,1.25627467,2466.3,2466.2,4.5178]
[1728811893968,1.25627467,2466.3,2466.2,1.31]
[1728811894363,2.56627467,2466.3,2466.2,4.5178]
[1728811894566,2.16075467,2466.3,2466.2,4.5178]
[1728811894764,0.05895467,2466.3,2466.2,4.5178]
[1728811894965,0.05895467,2466.3,2466.2,4.92334]
[1728811895671,0.05895467,2466.3,2466.2,4.5178]
[1728811896073,0.05895467,2466.3,2466.2,5.6958]
[1728811897071,0.05895467,2466.3,2466.2,6.10134]
[1728811897972,0.05895467,2466.3,2466.2,5.6958]
[1728811899779,0.05895467,2466.3,2466.2,2.488]
[1728811899969,0.05895467,2466.3,2466.2,5.6958]
[1728811900170,0.05895467,2466.3,2466.2,6.10134]
[1728811900583,0.05895467,2466.3,2466.2,7.16513341]
[1728811900786,0.05895467,2466.3,2466.2,9.01810445]
[1728811901286,0.05895467,2466.3,2466.2,9.52524004]
[1728811901490,0.05895467,2466.3,2466.2,9.65202393]
[1728811902784,0.05895467,2466.3,2466.2,9.42876649]
[1728811903090,0.05895467,2466.3,2466.2,9.65207037]
[1728811903692,0.05895467,2466.3,2466.2,13.70647037]
[1728811905585,0.05895467,2466.3,2466.2,12.11075293]
[1728811905791,0.05895467,2466.3,2466.2,12.11075687]
[1728811906287,0.05895467,2466.3,2466.2,22.91968829]
[1728811906494,1.45887793,2466.9,2466.7,1.31]
[1728811906684,1.45764798,2466.9,2466.8,2.1368]
[1728811912493,1.45764798,2466.9,2466.8,1.723]
[1728811912793,3.17306798,2466.9,2466.8,1.31]
[1728811912991,3.58726798,2466.9,2466.8,1.31]
[1728811913801,3.18184798,2466.9,2466.8,1.31]
[1728811918993,3.58726798,2466.9,2466.7,1.31]
[1728811919596,3.58726798,2466.9,2466.6,4.26891116]
[1728811919597,0.40544,2466.8,2466.6,4.26891116]
[1728811919797,0.40546,2466.7,2466.6,4.5178]
[1728811919999,0.79396,2466.7,2466.6,4.5178]